fUSD/lending_fUSD_20260608
["ID","MTS","AMOUNT","RATE_DAILY","PERIOD"]
[424434702,1780885845000,-500.0,0.00014999,2]
[424434701,1780885845000,-500.0,0.00014999,2]
[424434703,1780885845000,-500.0,0.00014999,2]
[424434710,1780885845000,-500.0,0.00014999,2]
[424434708,1780885845000,-500.0,0.00014999,2]
[424434700,1780885845000,-500.0,0.00014999,2]
[424434706,1780885845000,-500.0,0.00014999,2]
[424434707,1780885845000,-500.0,0.00014999,2]
[424434709,1780885845000,-500.0,0.00014999,2]
[424434746,1780885845000,-9360307.55348985,0.00015,2]
[424434787,1780885845000,-784.767606,0.00015,2]
[424434737,1780885845000,-2000.0,0.00015,2]
[424434777,1780885845000,-151.0,0.00015,2]
[424434783,1780885845000,-193.0,0.00015,2]
[424434774,1780885845000,-151.0,0.00015,2]
[424434782,1780885845000,-193.0,0.00015,2]
[424434779,1780885845000,-193.0,0.00015,2]
[424434775,1780885845000,-153.653548,0.00015,2]
[424434785,1780885845000,-193.35541125,0.00015,2]
[424434781,1780885845000,-193.0,0.00015,2]
[424434780,1780885845000,-193.0,0.00015,2]
[424434797,1780885845000,-784.767606,0.00015,2]
[424434786,1780885845000,-784.767606,0.00015,2]
[424434798,1780885845000,-151.0,0.00015,2]
[424434794,1780885845000,-784.767606,0.00015,2]
[424434791,1780885845000,-784.767606,0.00015,2]
[424434796,1780885845000,-784.767606,0.00015,2]
[424434790,1780885845000,-784.767606,0.00015,2]
[424434795,1780885845000,-784.767606,0.00015,2]
[424434788,1780885845000,-784.767606,0.00015,2]
[424434793,1780885845000,-784.767606,0.00015,2]
[424434792,1780885845000,-784.767606,0.00015,2]
[424434789,1780885845000,-784.767606,0.00015,2]
[424434799,1780885845000,-151.0,0.00015,2]
[424434801,1780885845000,-155.206927,0.00015,2]
[424434800,1780885845000,-151.0,0.00015,2]
[424434803,1780885845000,-500.0,0.00015046,2]
[424434802,1780885845000,-170.07468546,0.00015024,2]
[424434743,1780885845000,-1735.27,0.00015,2]
[424434784,1780885845000,-193.0,0.00015,2]
[424434776,1780885845000,-151.0,0.00015,2]
[424434778,1780885845000,-151.632188,0.00015,2]
[424434765,1780885845000,-151.619969,0.00015,2]
[424434747,1780885845000,-151.0,0.00015,2]
[424434742,1780885845000,-892.12,0.00015,2]
[424434745,1780885845000,-1004.26684243,0.00015,2]
[424434744,1780885845000,-33329.10736559,0.00015,2]
[424434748,1780885845000,-151.0,0.00015,2]
[424434757,1780885845000,-151.619969,0.00015,2]
[424434758,1780885845000,-151.619969,0.00015,2]
[424434753,1780885845000,-161.37214,0.00015,2]
[424434755,1780885845000,-151.619969,0.00015,2]
[424434773,1780885845000,-535.25238516,0.00015,2]
[424434756,1780885845000,-151.619969,0.00015,2]
[424434752,1780885845000,-151.0,0.00015,2]
[424434751,1780885845000,-151.0,0.00015,2]
[424434754,1780885845000,-151.619969,0.00015,2]
[424434750,1780885845000,-151.0,0.00015,2]
[424434760,1780885845000,-151.619969,0.00015,2]
[424434767,1780885845000,-151.0,0.00015,2]
[424434749,1780885845000,-151.0,0.00015,2]
[424434768,1780885845000,-151.0,0.00015,2]
[424434761,1780885845000,-151.619969,0.00015,2]
[424434766,1780885845000,-50000.0,0.00015,2]
[424434771,1780885845000,-151.0,0.00015,2]
[424434763,1780885845000,-151.619969,0.00015,2]
[424434769,1780885845000,-151.0,0.00015,2]
[424434770,1780885845000,-151.0,0.00015,2]
[424434772,1780885845000,-151.0,0.00015,2]
[424434762,1780885845000,-151.619969,0.00015,2]
[424434759,1780885845000,-151.619969,0.00015,2]
[424434764,1780885845000,-151.619969,0.00015,2]
[424434816,1780885846000,-260.250992,0.00015068,2]
[424434814,1780885846000,-260.250992,0.00015068,2]
[424434808,1780885846000,-793.0,0.00015068,2]
[424434811,1780885846000,-260.250992,0.00015068,2]
[424434809,1780885846000,-487.78,0.00015068,2]
[424434805,1780885846000,-204.80935268,0.00015049,2]
[424434810,1780885846000,-260.250992,0.00015068,2]
[424434807,1780885846000,-198.0,0.00015068,2]
[424434804,1780885846000,-2000.0,0.00015046,2]
[424434813,1780885846000,-260.250992,0.00015068,2]
[424434806,1780885846000,-1555.5,0.00015066,2]
[424434824,1780885846000,-350.0,0.0001507,2]
[424434815,1780885846000,-260.250992,0.00015068,2]
[424434822,1780885846000,-260.250992,0.00015068,2]
[424434835,1780885846000,-451.07,0.000149,2]
[424434827,1780885846000,-199.5,0.00015184,2]
[424434829,1780885846000,-7446.48339699,0.000152,2]
[424434825,1780885846000,-1571.88,0.000151,2]
[424434826,1780885846000,-350.0,0.00015167,2]
[424434828,1780885846000,-6266.88638656,0.000152,2]
[424434817,1780885846000,-260.250992,0.00015068,2]
[424434818,1780885846000,-260.250992,0.00015068,2]
[424434821,1780885846000,-260.250992,0.00015068,2]
[424434819,1780885846000,-260.250992,0.00015068,2]
[424434823,1780885846000,-260.250992,0.00015068,2]
[424434836,1780885846000,-1773.10172134,0.00012208,2]
[424434839,1780885847000,-1066.2629,0.00012208,2]
[424434840,1780885847000,-585.9697515,0.00012208,2]
[424434841,1780885847000,-19227.12880151,0.00012208,2]
[424434837,1780885847000,-285.3105544,0.00012208,2]
[424434838,1780885847000,-387.372,0.00012208,2]
[424434851,1780886029000,3160.54,0.00030137,120]
[424434852,1780886167000,922.199,0.00030136,120]
[424434866,1780886669000,308.73350998,0.0003,120]
[424434871,1780886886000,466.11,0.00030082,120]
[424434891,1780887032000,-3566.58,0.00012329,2]
[424434890,1780887032000,-1530.36,0.00012329,2]
[424434888,1780887032000,-1376.28,0.00012329,2]
[424434889,1780887032000,-9999.99,0.00012329,2]
[424434886,1780887032000,-1024.94913309,0.00012208,2]
[424434887,1780887032000,-9183.12839256,0.00012208,2]
[424434885,1780887032000,-623.01247435,0.00012208,2]
[424434884,1780887032000,-166.4,0.00012172,2]
[424434882,1780887032000,-643.3256966,0.0001197,2]
[424434881,1780887032000,-478.52182905,0.00011766,2]
[424434879,1780887032000,-150.0,0.00011734,2]
[424434880,1780887032000,-2449.11817095,0.00011766,2]
[424434878,1780887032000,-189.0,0.00010513,2]
[424434876,1780887032000,-153.22,9.619e-05,2]
[424434877,1780887032000,-150.0,0.00010409,2]
[424434883,1780887032000,-4189.44,0.00012055,2]
[424434897,1780887032000,-184.636,0.00012391,2]
[424434892,1780887032000,-2130.23,0.00012329,2]
[424434895,1780887032000,-150.99,0.00012358,2]
[424434896,1780887032000,-299.99,0.00012358,2]
[424434910,1780887032000,-161.28946961,0.00012623,2]
[424434907,1780887032000,-500.0,0.00012582,2]
[424434909,1780887032000,-300.0,0.000126,4]
[424434908,1780887032000,-215.83393831,0.00012599,2]
[424434905,1780887032000,-163.86438545,0.00012544,2]
[424434906,1780887032000,-186.27302697,0.00012575,2]
[424434903,1780887032000,-150.0,0.00012543,2]
[424434911,1780887032000,-39.49808747,0.00012634,2]
[424434898,1780887032000,-1639.995,0.00012391,2]
[424434894,1780887032000,-466.11,0.00012329,2]
[424434893,1780887032000,-5427.96,0.00012329,2]
[424434901,1780887032000,-1299.22892134,0.00012444,2]
[424434902,1780887032000,-613.88212752,0.00012444,2]
[424434899,1780887032000,-4906.58795114,0.00012444,2]
[424434904,1780887032000,-408.15078564,0.00012544,2]
[424434950,1780887038000,-53.09121686,0.00012643,2]
[424434946,1780887038000,-500.0,0.00012643,2]
[424434945,1780887038000,-500.0,0.00012643,2]
[424434947,1780887038000,-193.0,0.00012643,2]
[424434941,1780887038000,-500.0,0.00012643,2]
[424434944,1780887038000,-26.19121686,0.00012643,2]
[424434943,1780887038000,-473.80878314,0.00012643,2]
[424434942,1780887038000,-500.0,0.00012643,2]
[424434940,1780887038000,-500.0,0.00012643,2]
[424434937,1780887038000,-113.94121686,0.00012634,2]
[424434948,1780887038000,-193.0,0.00012643,2]
[424434949,1780887038000,-446.90878314,0.00012643,2]
[424434938,1780887038000,-500.0,0.00012643,2]
[424434952,1780887038000,-314.18555438,0.00012643,2]
[424434939,1780887038000,-500.0,0.00012643,2]
[424434953,1780887038000,-56.37241109,0.00012643,2]
[424434968,1780887038000,-500.0,0.00012643,2]
[424434954,1780887038000,-236.80558308,0.00012643,2]
[424434966,1780887038000,-500.0,0.00012643,2]
[424434969,1780887038000,-371.49174176,0.00012643,2]
[424434967,1780887038000,-500.0,0.00012643,2]
[424434951,1780887038000,-186.35081767,0.00012643,2]
[424434963,1780887038000,-381.9484479,0.00012643,2]
[424434964,1780887038000,-68.05155209,0.00012643,2]
[424434962,1780887038000,-118.0515521,0.00012643,2]
[424434965,1780887038000,-431.94844791,0.00012643,2]
[424434957,1780887038000,-616.81497741,0.00012643,2]
[424434961,1780887038000,-502.06493195,0.00012643,2]
[424434956,1780887038000,-500.0,0.00012643,2]
[424434959,1780887038000,-500.0,0.00012643,2]
[424434958,1780887038000,-242.67013954,0.00012643,2]
[424434955,1780887038000,-500.0,0.00012643,2]
[424434960,1780887038000,-253.59281594,0.00012643,2]
[424434983,1780887040000,-409.34723079,0.00012643,2]
[424434980,1780887040000,-500.0,0.00012643,2]
[424434978,1780887040000,-500.0,0.00012643,2]
[424434979,1780887040000,-500.0,0.00012643,2]
[424434977,1780887040000,-50.02631077,0.00012643,2]
[424434981,1780887040000,-500.0,0.00012643,2]
[424434982,1780887040000,-500.0,0.00012643,2]
[424434988,1780887043000,-90.65276921,0.00012643,2]
[424434991,1780887043000,-500.0,0.00012643,2]
[424434989,1780887043000,-500.0,0.00012643,2]
[424434992,1780887043000,-20.71536903,0.00012643,2]
[424434990,1780887043000,-500.0,0.00012643,2]
[424435058,1780887047000,-500.0,0.00012643,2]
[424435059,1780887047000,-500.0,0.00012643,2]
[424435056,1780887047000,-500.0,0.00012643,2]
[424435047,1780887047000,-500.0,0.00012643,2]
[424435050,1780887047000,-500.0,0.00012643,2]
[424435048,1780887047000,-500.0,0.00012643,2]
[424435043,1780887047000,-500.0,0.00012643,2]
[424435051,1780887047000,-500.0,0.00012643,2]
[424435045,1780887047000,-500.0,0.00012643,2]
[424435044,1780887047000,-500.0,0.00012643,2]
[424435046,1780887047000,-500.0,0.00012643,2]
[424435049,1780887047000,-500.0,0.00012643,2]
[424435041,1780887047000,-500.0,0.00012643,2]
[424435052,1780887047000,-500.0,0.00012643,2]
[424435042,1780887047000,-500.0,0.00012643,2]
[424435037,1780887047000,-500.0,0.00012643,2]
[424435038,1780887047000,-500.0,0.00012643,2]
[424435036,1780887047000,-500.0,0.00012643,2]
[424435040,1780887047000,-500.0,0.00012643,2]
[424435039,1780887047000,-500.0,0.00012643,2]
[424435035,1780887047000,-500.0,0.00012643,2]
[424435033,1780887047000,-160.0,0.00012362,2]
[424435034,1780887047000,-479.28463097,0.00012643,2]
[424435057,1780887047000,-500.0,0.00012643,2]
[424435053,1780887047000,-500.0,0.00012643,2]
[424435055,1780887047000,-500.0,0.00012643,2]
[424435054,1780887047000,-500.0,0.00012643,2]
[424435060,1780887047000,-500.0,0.00012643,2]
[424435066,1780887047000,-500.0,0.00012643,2]
[424435086,1780887047000,-193.0,0.00012644,2]
[424435085,1780887047000,-193.0,0.00012644,2]
[424435083,1780887047000,-302.46,0.00012644,2]
[424435082,1780887047000,-213.0,0.00012644,2]
[424435084,1780887047000,-357.58744262,0.00012644,2]
[424435081,1780887047000,-150.0,0.00012644,2]
[424435076,1780887047000,-500.0,0.00012643,2]
[424435080,1780887047000,-200.0,0.00012643,2]
[424435074,1780887047000,-500.0,0.00012643,2]
[424435069,1780887047000,-500.0,0.00012643,2]
[424435075,1780887047000,-500.0,0.00012643,2]
[424435070,1780887047000,-500.0,0.00012643,2]
[424435071,1780887047000,-500.0,0.00012643,2]
[424435073,1780887047000,-500.0,0.00012643,2]
[424435067,1780887047000,-500.0,0.00012643,2]
[424435079,1780887047000,-500.0,0.00012643,2]
[424435078,1780887047000,-500.0,0.00012643,2]
[424435077,1780887047000,-500.0,0.00012643,2]
[424435068,1780887047000,-500.0,0.00012643,2]
[424435063,1780887047000,-500.0,0.00012643,2]
[424435062,1780887047000,-520.72107408,0.00012643,2]
[424435061,1780887047000,-500.0,0.00012643,2]
[424435065,1780887047000,-322.8381553,0.00012643,2]
[424435064,1780887047000,-500.0,0.00012643,2]
[424435072,1780887047000,-500.0,0.00012643,2]
[424435088,1780887048000,-949282.39871536,0.00012644,2]
[424435087,1780887048000,-193.0,0.00012644,2]
[424435089,1780887048000,-937.4931,0.00012644,2]
[424435092,1780887048000,-6313.4,0.00012644,2]
[424435091,1780887048000,-297.62042066,0.00012644,2]
[424435090,1780887048000,-500.0,0.00012644,2]
[424435096,1780887318000,162.33,0.00030136,120]
[424435098,1780887417000,663.77653837,0.00030137,120]
[424435099,1780887471000,1000.0,0.0003013,120]
[424435116,1780888231000,-392.13012342,0.00010822,2]
[424435113,1780888231000,-161.1175585,0.00010822,2]
[424435114,1780888231000,-290.01160529,0.00010822,2]
[424435111,1780888231000,-279.5044208,0.00010733,2]
[424435115,1780888231000,-515.060611,0.00010822,2]
[424435117,1780888231000,-155.43566945,0.00010822,2]
[424435118,1780888231000,-3263.58,0.00011267,2]
[424435112,1780888231000,-150.0,0.00010778,2]
[424435121,1780888231000,-150.0,0.00011353,2]
[424435119,1780888231000,-625.62,0.00011312,2]
[424435122,1780888231000,-53804.82,0.00011354,2]
[424435123,1780888231000,-150.0,0.00011593,2]
[424435125,1780888231000,-300.0,0.000117,4]
[424435126,1780888231000,-600.0,0.000118,4]
[424435124,1780888231000,-1044.35,0.00011595,2]
[424435120,1780888231000,-1044.35,0.00011312,2]
[424435139,1780888232000,-2500.0,0.00012165,2]
[424435138,1780888232000,-31424.5871,0.00012165,2]
[424435144,1780888232000,-157.94645028,0.00012264,2]
[424435136,1780888232000,-9416.43,0.00012087,2]
[424435143,1780888232000,-502.0,0.00012247,2]
[424435127,1780888232000,-1044.35,0.00011878,2]
[424435131,1780888232000,-160.75,0.00012048,2]
[424435128,1780888232000,-900.0,0.000119,4]
[424435130,1780888232000,-1311.996,0.00012048,2]
[424435129,1780888232000,-184.636,0.00012048,2]
[424435132,1780888232000,-9999.99,0.00012087,2]
[424435133,1780888232000,-150.99,0.00012087,2]
[424435142,1780888232000,-44298.12570149,0.00012165,2]
[424435140,1780888232000,-164.73570508,0.00012165,2]
[424435134,1780888232000,-299.99,0.00012087,2]
[424435155,1780888232000,-881.80625,0.00012265,2]
[424435153,1780888232000,-1518.10659235,0.00012265,2]
[424435150,1780888232000,-52442.31391929,0.00012265,2]
[424435149,1780888232000,-485410.05507943,0.00012265,2]
[424435148,1780888232000,-2000.0,0.00012264,2]
[424435151,1780888232000,-3569.0540697,0.00012265,2]
[424435145,1780888232000,-219.92988807,0.00012264,2]
[424435146,1780888232000,-169.86909768,0.00012264,2]
[424435137,1780888232000,-1044.35,0.00012161,2]
[424435141,1780888232000,-272.10052376,0.00012165,2]
[424435135,1780888232000,-7849.08,0.00012087,2]
[424435147,1780888232000,-500.0,0.00012264,2]
[424435173,1780888238000,-1410.0,0.00012265,2]
[424435170,1780888238000,-764.8018764,0.00012265,2]
[424435172,1780888238000,-4600.01378669,0.00012265,2]
[424435171,1780888238000,-326.79018928,0.00012265,2]
[424435174,1780888238000,-7060.92014268,0.00012265,2]
[424435175,1780888238000,-2148.77700831,0.00012265,2]
[424435176,1780888238000,-942.62744777,0.00012265,2]
[424435177,1780888238000,-2111.665,0.00012265,2]
[424435178,1780888238000,-2560.5904227,0.00012265,2]
[424435179,1780888238000,-265.712551,0.00012265,2]
[424435180,1780888238000,-2851.21217869,0.00012265,2]
[424435181,1780888238000,-9503.54,0.00012265,2]
[424435182,1780888238000,-705.39,0.00012265,2]
[424435205,1780888239000,-359.72147329,0.00012265,2]
[424435206,1780888240000,-614.9631,0.00012265,2]
[424435207,1780888240000,-463.52887949,0.00012265,2]
[424435209,1780888240000,-1174.7425628,0.00012265,2]
[424435210,1780888240000,-273.1454,0.00012265,2]
[424435208,1780888240000,-457.04884248,0.00012265,2]
[424435214,1780888242000,-2766.70849348,0.00012265,2]
[424435213,1780888242000,-396.39720214,0.00012265,2]
[424435212,1780888242000,-314.47253761,0.00012265,2]
[424435216,1780888243000,-563.34838093,0.00012265,2]
[424435215,1780888243000,-579.72469973,0.00012265,2]
[424435253,1780888245000,-27658.93505467,0.00012265,2]
[424435252,1780888245000,-405.28142617,0.00012265,2]
[424435256,1780888245000,-5689.00094114,0.00012265,2]
[424435254,1780888245000,-38390.94167715,0.00012265,2]
[424435255,1780888245000,-1479.82,0.00012265,2]
[424435257,1780888246000,-684.78,0.00012265,2]
[424435272,1780888322000,1057.839733,0.0003,120]
[424435273,1780888365000,710.79919628,0.00030136,120]
[424435275,1780888516000,152.24880733,0.00030137,120]
[424435279,1780888728000,310.74,0.00030082,120]
[424435287,1780888760000,-364.30893598,8e-05,2]
[424435286,1780888760000,-286.06465649,8e-05,2]
[424435285,1780888760000,-500.0,8e-05,2]
[424435291,1780888820000,-4391.46573246,8e-05,2]
[424435296,1780888836000,-1400.47,0.00011636,2]
[424435297,1780888836000,-158.68,0.00011639,2]
[424435294,1780888836000,-150.0,0.00011486,2]
[424435292,1780888836000,-1437.37934,0.00011428,2]
[424435293,1780888836000,-150.0,0.00011486,2]
[424435298,1780888836000,-181.40034918,0.0001179,2]
[424435295,1780888836000,-150.0,0.00011517,2]
[424435299,1780888837000,-6372.07031082,0.0001179,2]
[424435305,1780888941000,-300.49,0.000116,4]
[424435304,1780888941000,-264.51,0.00011339,2]
[424435310,1780889145000,307.759228,0.000301,120]
[424435314,1780889165000,307.759221,0.000301,120]
[424435317,1780889219000,307.759221,0.000301,120]
[424435347,1780889432000,-800.0,0.000115,4]
[424435350,1780889432000,-1600.0,0.000116,4]
[424435348,1780889432000,-665.18,0.00011528,2]
[424435344,1780889432000,-1631.79,0.00011082,2]
[424435346,1780889432000,-665.18,0.00011253,2]
[424435349,1780889432000,-379.69632707,0.000116,7]
[424435345,1780889432000,-542.05571509,0.00011253,2]
[424435343,1780889432000,-665.18,0.00010979,2]
[424435342,1780889432000,-150.0,0.00010964,2]
[424435339,1780889432000,-424.0,0.00010887,2]
[424435340,1780889432000,-1576.0,0.00010887,2]
[424435341,1780889432000,-150.0,0.00010926,2]
[424435351,1780889432000,-2400.0,0.000117,4]
[424435353,1780889432000,-33252.4679,0.00011781,2]
[424435352,1780889432000,-150.0,0.0001178,2]
[424435362,1780889432000,-665.18,0.00011802,2]
[424435363,1780889432000,-167.19384099,0.00011821,2]
[424435364,1780889432000,-610.17820874,0.00011828,2]
[424435361,1780889432000,-3200.0,0.000118,4]
[424435360,1780889432000,-712.39495351,0.0001179,2]
[424435365,1780889432000,-633.37933997,0.00011828,2]
[424435359,1780889432000,-815.24673031,0.0001179,2]
[424435356,1780889432000,-184.636,0.00011781,2]
[424435357,1780889432000,-1049.597,0.00011781,2]
[424435355,1780889432000,-2500.0,0.00011781,2]
[424435354,1780889432000,-2000.0,0.00011781,2]
[424435358,1780889432000,-336.16585107,0.00011789,2]
[424435367,1780889433000,-380.0,0.00011828,2]
[424435366,1780889433000,-300.0,0.00011828,2]
[424435376,1780889437000,-5487.4765585,0.00011828,2]
[424435411,1780889438000,-528.47431708,0.0001188,2]
[424435413,1780889438000,-528.47431708,0.0001188,2]
[424435423,1780889438000,-528.47431708,0.0001188,2]
[424435425,1780889438000,-528.47431708,0.0001188,2]
[424435427,1780889438000,-528.47431708,0.0001188,2]
[424435418,1780889438000,-528.47431708,0.0001188,2]
[424435417,1780889438000,-528.47431708,0.0001188,2]
[424435410,1780889438000,-528.47431708,0.0001188,2]
[424435420,1780889438000,-528.47431708,0.0001188,2]
[424435415,1780889438000,-528.47431708,0.0001188,2]
[424435419,1780889438000,-528.47431708,0.0001188,2]
[424435409,1780889438000,-528.47431708,0.0001188,2]
[424435421,1780889438000,-528.47431708,0.0001188,2]
[424435441,1780889438000,-528.47431708,0.0001188,2]
[424435431,1780889438000,-528.47431708,0.0001188,2]
[424435446,1780889438000,-528.47431708,0.0001188,2]
[424435447,1780889438000,-528.47431708,0.0001188,2]
[424435443,1780889438000,-528.47431708,0.0001188,2]
[424435445,1780889438000,-528.47431708,0.0001188,2]
[424435403,1780889438000,-528.47431708,0.0001188,2]
[424435450,1780889438000,-528.47431708,0.0001188,2]
[424435437,1780889438000,-528.47431708,0.0001188,2]
[424435435,1780889438000,-528.47431708,0.0001188,2]
[424435433,1780889438000,-528.47431708,0.0001188,2]
[424435439,1780889438000,-528.47431708,0.0001188,2]
[424435448,1780889438000,-528.47431708,0.0001188,2]
[424435451,1780889438000,-528.47431708,0.0001188,2]
[424435429,1780889438000,-528.47431708,0.0001188,2]
[424435406,1780889438000,-528.47431708,0.0001188,2]
[424435408,1780889438000,-528.47431708,0.0001188,2]
[424435400,1780889438000,-528.47431708,0.0001188,2]
[424435377,1780889438000,-777.2934415,0.00011828,2]
[424435379,1780889438000,-379.69632707,0.00011832,7]
[424435378,1780889438000,-3438.62165949,0.00011828,2]
[424435380,1780889438000,-48818.43247519,0.00011865,2]
[424435381,1780889438000,-1987.82949945,0.00011871,2]
[424435382,1780889438000,-151.0,0.00011878,2]
[424435383,1780889438000,-500.0,0.0001188,2]
[424435384,1780889438000,-527.71450785,0.0001188,2]
[424435385,1780889438000,-500.85079125,0.0001188,2]
[424435394,1780889438000,-277.7511132,0.0001188,2]
[424435395,1780889438000,-500.0,0.0001188,2]
[424435386,1780889438000,-500.0,0.0001188,2]
[424435387,1780889438000,-500.0,0.0001188,2]
[424435407,1780889438000,-528.47431708,0.0001188,2]
[424435389,1780889438000,-500.14605424,0.0001188,2]
[424435388,1780889438000,-392.4690095,0.0001188,2]
[424435390,1780889438000,-500.0,0.0001188,2]
[424435393,1780889438000,-299.31792565,0.0001188,2]
[424435392,1780889438000,-500.38905515,0.0001188,2]
[424435396,1780889438000,-570.69554301,0.0001188,2]
[424435399,1780889438000,-528.47431708,0.0001188,2]
[424435398,1780889438000,-500.0,0.0001188,2]
[424435397,1780889438000,-500.0,0.0001188,2]
[424435463,1780889438000,-528.47431708,0.0001188,2]
[424435401,1780889438000,-528.47431708,0.0001188,2]
[424435405,1780889438000,-528.47431708,0.0001188,2]
[424435402,1780889438000,-528.47431708,0.0001188,2]
[424435404,1780889438000,-528.47431708,0.0001188,2]
[424435391,1780889438000,-427.54666642,0.0001188,2]
[424435465,1780889438000,-528.47431708,0.0001188,2]
[424435481,1780889438000,-527.04600812,0.0001188,2]
[424435469,1780889438000,-528.47431708,0.0001188,2]
[424435497,1780889438000,-527.04600812,0.0001188,2]
[424435499,1780889438000,-527.04600812,0.0001188,2]
[424435500,1780889438000,-527.04600812,0.0001188,2]
[424435502,1780889438000,-527.04600812,0.0001188,2]
[424435508,1780889438000,-529.13746053,0.0001188,2]
[424435510,1780889438000,-529.13746053,0.0001188,2]
[424435501,1780889438000,-527.04600812,0.0001188,2]
[424435503,1780889438000,-527.04600812,0.0001188,2]
[424435505,1780889438000,-529.13746053,0.0001188,2]
[424435509,1780889438000,-529.13746053,0.0001188,2]
[424435506,1780889438000,-529.13746053,0.0001188,2]
[424435507,1780889438000,-529.13746053,0.0001188,2]
[424435504,1780889438000,-527.04600812,0.0001188,2]
[424435498,1780889438000,-527.04600812,0.0001188,2]
[424435511,1780889438000,-529.13746053,0.0001188,2]
[424435512,1780889438000,-150.0,0.0001188,2]
[424435514,1780889438000,-1542536.2824,0.00011881,2]
[424435515,1780889438000,-4000.0,0.000119,4]
[424435516,1780889438000,-99835.61831551,0.00011911,2]
[424435521,1780889438000,-1924.13,0.00011987,2]
[424435517,1780889438000,-2314.57787196,0.00011973,2]
[424435523,1780889438000,-500.0,0.00012,2]
[424435522,1780889438000,-150.0,0.00011987,2]
[424435518,1780889438000,-3066.86210564,0.00011973,2]
[424435519,1780889438000,-216.73130534,0.00011974,2]
[424435520,1780889438000,-710.91,0.00011987,2]
[424435524,1780889438000,-183.0,0.00012027,2]
[424435467,1780889438000,-528.47431708,0.0001188,2]
[424435513,1780889438000,-2000.0,0.0001188,2]
[424435487,1780889438000,-527.04600812,0.0001188,2]
[424435525,1780889438000,-151.3121716,0.00012044,2]
[424435493,1780889438000,-527.04600812,0.0001188,2]
[424435470,1780889438000,-528.47431708,0.0001188,2]
[424435455,1780889438000,-528.47431708,0.0001188,2]
[424435471,1780889438000,-528.47431708,0.0001188,2]
[424435453,1780889438000,-528.47431708,0.0001188,2]
[424435459,1780889438000,-528.47431708,0.0001188,2]
[424435457,1780889438000,-528.47431708,0.0001188,2]
[424435461,1780889438000,-528.47431708,0.0001188,2]
[424435495,1780889438000,-527.04600812,0.0001188,2]
[424435473,1780889438000,-385.05040324,0.0001188,2]
[424435475,1780889438000,-527.04600812,0.0001188,2]
[424435474,1780889438000,-527.04600812,0.0001188,2]
[424435485,1780889438000,-527.04600812,0.0001188,2]
[424435476,1780889438000,-527.04600812,0.0001188,2]
[424435477,1780889438000,-527.04600812,0.0001188,2]
[424435472,1780889438000,-528.47431708,0.0001188,2]
[424435478,1780889438000,-527.04600812,0.0001188,2]
[424435479,1780889438000,-527.04600812,0.0001188,2]
[424435494,1780889438000,-527.04600812,0.0001188,2]
[424435496,1780889438000,-527.04600812,0.0001188,2]
[424435492,1780889438000,-527.04600812,0.0001188,2]
[424435491,1780889438000,-527.04600812,0.0001188,2]
[424435488,1780889438000,-527.04600812,0.0001188,2]
[424435490,1780889438000,-527.04600812,0.0001188,2]
[424435486,1780889438000,-527.04600812,0.0001188,2]
[424435483,1780889438000,-527.04600812,0.0001188,2]
[424435480,1780889438000,-527.04600812,0.0001188,2]
[424435484,1780889438000,-527.04600812,0.0001188,2]
[424435482,1780889438000,-527.04600812,0.0001188,2]
[424435489,1780889438000,-527.04600812,0.0001188,2]
[424435561,1780889439000,-1009.0,0.000128,2]
[424435570,1780889439000,-500.0,0.00012827,2]